[Event "15e Open International d'Echecs Mont de Marsan"]
[Site "Mont de Marsan, France"]
[Date "????.??.??"]
[Round "6.2"]
[White "PRIE, ERIC"]
[Black "BOGDANOV, EGOR"]
[Result "0-1"]
[TimeControl "60 minutes + 30 secondes per move"]
[WhiteTitle "GM"]
[BlackTitle "IM"]
[WhiteElo "2482"]
[BlackElo "2410"]

1. d4 {[%clk 01:26:47]} {[%emt 00:03:42]} Nf6 {[%clk 01:30:43]} {[%emt
00:00:15]} 2. Bf4 {[%clk 01:27:01]} {[%emt 00:00:18]} g6 {[%clk 01:30:52]}
{[%emt 00:00:22]} 3. Nc3 {[%clk 01:27:23]} {[%emt 00:00:08]} d5 {[%clk
01:29:26]} {[%emt 00:01:56]} 4. e3 {[%clk 01:27:11]} {[%emt 00:00:42]} Bg7
{[%clk 01:29:51]} {[%emt 00:00:05]} 5. h4 {[%clk 01:27:34]} {[%emt 00:00:07]}
h5 {[%clk 01:27:37]} {[%emt 00:02:44]} 6. Nf3 {[%clk 01:27:32]} {[%emt
00:00:31]} O-O {[%clk 01:27:45]} {[%emt 00:00:22]} 7. Qd2 {[%clk 01:27:55]}
{[%emt 00:00:08]} a6 {[%clk 01:23:33]} {[%emt 00:04:42]} 8. O-O-O {[%clk
01:24:43]} {[%emt 00:03:41]} b5 {[%clk 01:23:04]} {[%emt 00:01:00]} 9. Ne5
{[%clk 01:22:22]} {[%emt 00:02:50]} b4 {[%clk 00:55:44]} {[%emt 00:27:50]} 10.
Ne2 {[%clk 01:22:07]} {[%emt 00:00:45]} Ne4 {[%clk 00:55:55]} {[%emt 00:00:20]}
11. Qe1 {[%clk 01:22:26]} {[%emt 00:00:10]} c5 {[%clk 00:55:28]} {[%emt
00:00:58]} 12. f3 {[%clk 01:22:28]} {[%emt 00:00:28]} Qa5 {[%clk 00:39:37]}
{[%emt 00:16:21]} 13. fxe4 {[%clk 01:09:30]} {[%emt 00:13:28]} Qxa2 {[%clk
00:39:58]} {[%emt 00:00:09]} 14. exd5 {[%clk 01:09:48]} {[%emt 00:00:11]} Nd7
{[%clk 00:37:11]} {[%emt 00:03:17]} 15. e4 {[%clk 00:57:05]} {[%emt 00:13:13]}
a5 {[%clk 00:34:00]} {[%emt 00:03:41]} 16. Kd2 {[%clk 00:48:17]} {[%emt
00:09:17]} Nxe5 {[%clk 00:30:33]} {[%emt 00:03:58]} 17. dxe5 {[%clk 00:46:17]}
{[%emt 00:02:30]} a4 {[%clk 00:30:08]} {[%emt 00:00:55]} 18. Ra1 {[%clk
00:29:37]} {[%emt 00:17:10]} Qxb2 {[%clk 00:28:58]} {[%emt 00:01:41]} 19. Qc1
{[%clk 00:29:49]} {[%emt 00:00:17]} Bxe5 {[%clk 00:29:04]} {[%emt 00:00:25]} 20.
Qxb2 {[%clk 00:29:57]} {[%emt 00:00:21]} Bxb2 {[%clk 00:29:32]} {[%emt
00:00:02]} 21. Ra2 {[%clk 00:30:18]} {[%emt 00:00:09]} a3 {[%clk 00:29:41]}
{[%emt 00:00:21]} 22. Nc1 {[%clk 00:30:33]} {[%emt 00:00:14]} Rd8 {[%clk
00:28:37]} {[%emt 00:01:35]} 23. Nb3 {[%clk 00:24:58]} {[%emt 00:06:05]} e6
{[%clk 00:28:01]} {[%emt 00:01:06]} 24. Bc7 {[%clk 00:22:19]} {[%emt 00:03:08]}
Rd7 {[%clk 00:23:48]} {[%emt 00:04:43]} 25. d6 {[%clk 00:22:39]} {[%emt
00:00:09]} Ra7 {[%clk 00:21:25]} {[%emt 00:02:53]} 26. Ke3 {[%clk 00:22:40]}
{[%emt 00:00:29]} Raxc7 {[%clk 00:19:41]} {[%emt 00:02:15]} 27. dxc7 {[%clk
00:23:02]} {[%emt 00:00:08]} Bc3 {[%clk 00:18:20]} {[%emt 00:01:52]} 28. Bc4
{[%clk 00:21:43]} {[%emt 00:01:49]} Rxc7 {[%clk 00:18:34]} {[%emt 00:00:17]} 29.
Rd1 {[%clk 00:21:35]} {[%emt 00:00:36]} Kg7 {[%clk 00:14:43]} {[%emt 00:04:22]}
30. g3 {[%clk 00:20:44]} {[%emt 00:01:20]} Be5 {[%clk 00:13:39]} {[%emt
00:01:34]} 31. Kf3 {[%clk 00:19:28]} {[%emt 00:01:44]} f5 {[%clk 00:12:40]}
{[%emt 00:01:32]} 32. exf5 {[%clk 00:19:06]} {[%emt 00:00:52]} Bb7+ {[%clk
00:13:07]} {[%emt 00:00:03]} 33. Kf2 {[%clk 00:18:54]} {[%emt 00:00:41]} exf5
{[%clk 00:13:35]} {[%emt 00:00:04]} 34. Bd5 {[%clk 00:08:44]} {[%emt 00:10:42]}
Bc8 {[%clk 00:10:39]} {[%emt 00:03:25]} 35. c4 {[%clk 00:09:00]} {[%emt
00:00:13]} Bd7 {[%clk 00:05:40]} {[%emt 00:05:30]} 36. Rd3 {[%clk 00:07:54]}
{[%emt 00:01:34]} Ba4 {[%clk 00:05:20]} {[%emt 00:00:51]} 37. Bf3 {[%clk
00:07:58]} {[%emt 00:00:26]} Bxb3 {[%clk 00:03:13]} {[%emt 00:02:38]} 38. Rxb3
{[%clk 00:08:21]} {[%emt 00:00:06]} Rd7 {[%clk 00:03:29]} {[%emt 00:00:14]} 39.
Bd5 {[%clk 00:07:42]} {[%emt 00:01:09]} Bd4+ {[%clk 00:03:49]} {[%emt
00:00:11]} 40. Ke2 {[%clk 00:06:53]} {[%emt 00:01:18]} Re7+ {[%clk 00:03:19]}
{[%emt 00:01:00]} 41. Kd1 {[%clk 00:07:08]} {[%emt 00:00:14]} Kf6 {[%clk
00:02:58]} {[%emt 00:00:52]} 42. Rd3 {[%clk 00:06:50]} {[%emt 00:00:47]} Re3
{[%clk 00:02:26]} {[%emt 00:01:04]} 43. Rxe3 {[%clk 00:06:42]} {[%emt
00:00:38]} Bxe3 {[%clk 00:02:55]} {[%emt 00:00:02]} 44. Bc6 {[%clk 00:04:49]}
{[%emt 00:02:22]} Bd4 {[%clk 00:02:56]} {[%emt 00:00:29]} 45. Ke2 {[%clk
00:04:10]} {[%emt 00:01:08]} Ke5 {[%clk 00:02:59]} {[%emt 00:00:28]} 46. Ba4
{[%clk 00:04:04]} {[%emt 00:00:36]} Bb2 {[%clk 00:02:45]} {[%emt 00:00:45]} 47.
Kd3 {[%clk 00:04:12]} {[%emt 00:00:22]} f4 {[%clk 00:02:21]} {[%emt 00:00:54]}
48. gxf4+ {[%clk 00:03:53]} {[%emt 00:00:49]} Kxf4 {[%clk 00:02:50]} {[%emt
00:00:01]} 49. Bd1 {[%clk 00:02:21]} {[%emt 00:02:01]} Kg3 {[%clk 00:02:27]}
{[%emt 00:00:53]} 50. Ke4 {[%clk 00:02:42]} {[%emt 00:00:08]} Kxh4 {[%clk
00:02:30]} {[%emt 00:00:28]} 51. Kd5 {[%clk 00:03:06]} {[%emt 00:00:05]} Bd4
{[%clk 00:01:50]} {[%emt 00:01:10]} 52. Rg2 {[%clk 00:02:47]} {[%emt 00:00:49]}
g5 {[%clk 00:01:49]} {[%emt 00:00:32]} 53. Ke4 {[%clk 00:02:14]} {[%emt
00:01:02]} Kh3 {[%clk 00:02:18]} {[%emt 00:00:02]} 54. Rxg5 {[%clk 00:01:45]}
{[%emt 00:00:59]} a2 {[%clk 00:01:50]} {[%emt 00:00:58]} 55. Rxh5+ {[%clk
00:02:07]} {[%emt 00:00:07]} Kg3 {[%clk 00:02:10]} {[%emt 00:00:10]} 56. Rg5+
{[%clk 00:01:47]} {[%emt 00:00:50]} Kf2 {[%clk 00:02:15]} {[%emt 00:00:26]} 0-1

[Event "15e Open International d'Echecs Mont de Marsan"]
[Site "Mont de Marsan, France"]
[Date "????.??.??"]
[Round "6.1"]
[White "BERNAL MORO, LUIS JAVIER"]
[Black "PENG LI, MIN"]
[Result "1/2-1/2"]
[TimeControl "60 minutes + 30 secondes per move"]
[WhiteTitle "IM"]
[BlackTitle "IM"]
[WhiteElo "2418"]
[BlackElo "2442"]

1. c4 {[%clk 01:26:04]} {[%emt 00:04:55]} g6 {[%clk 01:30:42]} {[%emt
00:00:18]} 2. e4 {[%clk 01:25:51]} {[%emt 00:00:43]} Bg7 {[%clk 01:31:04]}
{[%emt 00:00:08]} 3. d4 {[%clk 01:25:38]} {[%emt 00:00:43]} d6 {[%clk
01:31:29]} {[%emt 00:00:05]} 4. Ne2 {[%clk 01:24:31]} {[%emt 00:01:37]} e5
{[%clk 01:31:48]} {[%emt 00:00:11]} 5. d5 {[%clk 01:23:44]} {[%emt 00:01:16]}
a5 {[%clk 01:31:15]} {[%emt 00:01:04]} 6. Nec3 {[%clk 01:15:01]} {[%emt
00:09:13]} Bd7 {[%clk 01:29:28]} {[%emt 00:02:17]} 7. Be2 {[%clk 01:13:36]}
{[%emt 00:01:55]} Qh4 {[%clk 01:29:20]} {[%emt 00:00:37]} 8. g3 {[%clk
01:08:56]} {[%emt 00:05:11]} Qe7 {[%clk 01:29:15]} {[%emt 00:00:35]} 9. h4
{[%clk 01:09:15]} {[%emt 00:00:12]} h5 {[%clk 01:29:36]} {[%emt 00:00:08]} 10.
Nd2 {[%clk 00:58:23]} {[%emt 00:11:22]} Na6 {[%clk 01:29:51]} {[%emt 00:00:15]}
11. Nf3 {[%clk 00:54:11]} {[%emt 00:04:42]} Bh6 {[%clk 01:30:11]} {[%emt
00:00:10]} 12. Bxh6 {[%clk 00:52:21]} {[%emt 00:02:20]} Nxh6 {[%clk 01:30:35]}
{[%emt 00:00:06]} 13. Qd2 {[%clk 00:51:56]} {[%emt 00:00:55]} Nc5 {[%clk
01:30:35]} {[%emt 00:00:30]} 14. O-O-O {[%clk 00:50:42]} {[%emt 00:01:44]} Ng4
{[%clk 01:22:05]} {[%emt 00:09:00]} 15. Rhf1 {[%clk 00:50:08]} {[%emt
00:01:05]} Nf6 {[%clk 01:19:10]} {[%emt 00:03:25]} 16. Qe3 {[%clk 00:50:29]}
{[%emt 00:00:08]} Ng4 {[%clk 01:19:39]} {[%emt 00:00:02]} 17. Qd2 {[%clk
00:50:50]} {[%emt 00:00:08]} Nf6 {[%clk 01:20:04]} {[%emt 00:00:05]} 18. Qe3
{[%clk 00:51:10]} {[%emt 00:00:10]} Ng4 {[%clk 01:20:29]} {[%emt 00:00:06]}
1/2-1/2

[ePGN "0.1;DGT LiveChess/2.2.3"]

[Event "15e Open International d'Echecs Mont de Marsan"]
[Site "Mont de Marsan, France"]
[Date "????.??.??"]
[Round "7.1"]
[White "PENG LI, MIN"]
[Black "JACKSON, THOMAS"]
[Result "1/2-1/2"]
[TimeControl "60 minutes + 30 secondes per move"]
[WhiteTitle "IM"]
[WhiteElo "2442"]
[BlackElo "2121"]

1. e4 {[%clk 01:30:59]} {[%emt 00:00:01]} c5 {[%clk 01:30:51]} {[%emt
00:00:09]} 2. Nc3 {[%clk 01:31:22]} {[%emt 00:00:07]} e6 {[%clk 01:31:17]}
{[%emt 00:00:05]} 3. g3 {[%clk 01:31:47]} {[%emt 00:00:05]} d5 {[%clk
01:29:08]} {[%emt 00:02:38]} 4. exd5 {[%clk 01:32:10]} {[%emt 00:00:06]} exd5
{[%clk 01:29:28]} {[%emt 00:00:10]} 5. Bg2 {[%clk 01:32:39]} {[%emt 00:00:02]}
Nf6 {[%clk 01:29:35]} {[%emt 00:00:23]} 6. d3 {[%clk 01:33:03]} {[%emt
00:00:06]} Be7 {[%clk 01:27:11]} {[%emt 00:02:53]} 7. Nge2 {[%clk 01:33:24]}
{[%emt 00:00:09]} Nc6 {[%clk 01:26:57]} {[%emt 00:00:45]} 8. O-O {[%clk
01:33:45]} {[%emt 00:00:09]} O-O {[%clk 01:26:35]} {[%emt 00:00:52]} 9. Nf4
{[%clk 01:34:11]} {[%emt 00:00:04]} Bg4 {[%clk 01:23:57]} {[%emt 00:03:07]} 10.
Qd2 {[%clk 01:23:10]} {[%emt 00:11:32]} d4 {[%clk 01:18:13]} {[%emt 00:06:14]}
11. Ncd5 {[%clk 01:18:15]} {[%emt 00:05:24]} Ne5 {[%clk 01:16:37]} {[%emt
00:02:06]} 12. Nxf6+ {[%clk 01:14:12]} {[%emt 00:04:34]} Bxf6 {[%clk 01:16:50]}
{[%emt 00:00:16]} 13. f3 {[%clk 01:13:20]} {[%emt 00:01:23]} Bf5 {[%clk
01:12:20]} {[%emt 00:05:00]} 14. g4 {[%clk 01:13:17]} {[%emt 00:00:33]} Bd7
{[%clk 01:09:20]} {[%emt 00:03:29]} 15. Ne2 {[%clk 00:53:20]} {[%emt 00:20:27]}
h6 {[%clk 01:04:20]} {[%emt 00:05:31]} 16. h3 {[%clk 00:53:23]} {[%emt
00:00:27]} Bc6 {[%clk 01:03:24]} {[%emt 00:01:26]} 17. Ng3 {[%clk 00:53:30]}
{[%emt 00:00:23]} c4 {[%clk 00:57:26]} {[%emt 00:06:28]} 18. f4 {[%clk
00:51:52]} {[%emt 00:02:07]} c3 {[%clk 00:56:29]} {[%emt 00:01:28]} 19. Qf2
{[%clk 00:42:19]} {[%emt 00:10:03]} Bxg2 {[%clk 00:55:38]} {[%emt 00:01:21]} 20.
Qxg2 {[%clk 00:37:26]} {[%emt 00:05:23]} Nc6 {[%clk 00:55:18]} {[%emt
00:00:50]} 21. bxc3 {[%clk 00:35:32]} {[%emt 00:02:24]} dxc3 {[%clk 00:54:08]}
{[%emt 00:01:41]} 22. Rb1 {[%clk 00:35:55]} {[%emt 00:00:05]} Qc7 {[%clk
00:40:53]} {[%emt 00:13:46]} 23. Be3 {[%clk 00:35:01]} {[%emt 00:01:22]} Rfe8
{[%clk 00:40:02]} {[%emt 00:01:23]} 24. Ne4 {[%clk 00:35:21]} {[%emt 00:00:11]}
Bd4 {[%clk 00:40:00]} {[%emt 00:00:32]} 25. Bxd4 {[%clk 00:35:27]} {[%emt
00:00:24]} Nxd4 {[%clk 00:40:21]} {[%emt 00:00:10]} 26. Rb4 {[%clk 00:29:42]}
{[%emt 00:06:14]} Rad8 {[%clk 00:38:33]} {[%emt 00:02:18]} 27. Qf2 {[%clk
00:28:51]} {[%emt 00:01:14]} Rxe4 {[%clk 00:37:44]} {[%emt 00:01:25]} 28. dxe4
{[%clk 00:25:17]} {[%emt 00:04:04]} 1/2-1/2

[Event "15e Open International d'Echecs Mont de Marsan"]
[Site "Mont de Marsan, France"]
[Date "????.??.??"]
[Round "7.2"]
[White "BOGDANOV, EGOR"]
[Black "BERNAL MORO, LUIS JAVIER"]
[Result "1/2-1/2"]
[TimeControl "60 minutes + 30 secondes per move"]
[WhiteTitle "IM"]
[BlackTitle "IM"]
[WhiteElo "2410"]
[BlackElo "2418"]

1. e4 {[%clk 01:30:59]} c5 {[%clk 01:27:05]} {[%emt 00:03:55]} 2. c3 {[%clk
01:30:59]} {[%emt 00:00:30]} d5 {[%clk 01:26:25]} {[%emt 00:01:10]} 3. exd5
{[%clk 01:31:20]} {[%emt 00:00:10]} Qxd5 {[%clk 01:26:48]} {[%emt 00:00:06]} 4.
d4 {[%clk 01:31:42]} {[%emt 00:00:08]} Nf6 {[%clk 01:26:40]} {[%emt 00:00:38]}
5. Nf3 {[%clk 01:32:02]} {[%emt 00:00:10]} e6 {[%clk 01:26:59]} {[%emt
00:00:11]} 6. Be2 {[%clk 01:29:32]} {[%emt 00:03:00]} Be7 {[%clk 01:27:09]}
{[%emt 00:00:20]} 7. O-O {[%clk 01:29:35]} {[%emt 00:00:27]} O-O {[%clk
01:27:04]} {[%emt 00:00:35]} 8. Be3 {[%clk 01:29:11]} {[%emt 00:00:55]} Ng4
{[%clk 01:24:10]} {[%emt 00:03:23]} 9. Bf4 {[%clk 01:29:34]} {[%emt 00:00:07]}
Nc6 {[%clk 01:24:11]} {[%emt 00:00:29]} 10. h3 {[%clk 01:27:05]} {[%emt
00:03:00]} Nf6 {[%clk 01:23:10]} {[%emt 00:01:31]} 11. Ne5 {[%clk 01:27:16]}
{[%emt 00:00:19]} cxd4 {[%clk 01:18:36]} {[%emt 00:05:04]} 12. Nxc6 {[%clk
01:22:12]} {[%emt 00:05:33]} Qxc6 {[%clk 00:59:48]} {[%emt 00:19:18]} 13. Qxd4
{[%clk 01:19:37]} {[%emt 00:03:05]} Rd8 {[%clk 00:57:37]} {[%emt 00:02:41]} 14.
Qc4 {[%clk 01:19:35]} {[%emt 00:00:33]} Qxc4 {[%clk 00:40:41]} {[%emt
00:17:26]} 15. Bxc4 {[%clk 01:19:58]} {[%emt 00:00:06]} Bd7 {[%clk 00:41:00]}
{[%emt 00:00:12]} 16. Nd2 {[%clk 01:17:38]} {[%emt 00:02:50]} Ba4 {[%clk
00:35:03]} {[%emt 00:06:26]} 17. Bb3 {[%clk 01:15:19]} {[%emt 00:02:49]} Bxb3
{[%clk 00:34:27]} {[%emt 00:01:06]} 18. Nxb3 {[%clk 01:15:41]} {[%emt
00:00:08]} Rac8 {[%clk 00:32:17]} {[%emt 00:02:40]} 19. Rad1 {[%clk 01:15:24]}
{[%emt 00:00:46]} Nd5 {[%clk 00:31:56]} {[%emt 00:00:51]} 20. Bg3 {[%clk
01:15:23]} {[%emt 00:00:32]} f6 {[%clk 00:28:36]} {[%emt 00:03:50]} 21. Rd2
{[%clk 01:13:30]} {[%emt 00:02:23]} Nb6 {[%clk 00:23:33]} {[%emt 00:05:33]} 22.
Rxd8+ {[%clk 01:11:20]} {[%emt 00:02:40]} Rxd8 {[%clk 00:23:51]} {[%emt
00:00:12]} 23. Bc7 {[%clk 01:11:12]} {[%emt 00:00:38]} Rd5 {[%clk 00:23:49]}
{[%emt 00:00:31]} 24. Bxb6 {[%clk 01:11:27]} {[%emt 00:00:15]} axb6 {[%clk
00:24:15]} {[%emt 00:00:04]} 25. Re1 {[%clk 01:11:29]} {[%emt 00:00:28]} Kf7
{[%clk 00:24:13]} {[%emt 00:00:31]} 26. Kf1 {[%clk 01:11:49]} {[%emt 00:00:10]}
e5 {[%clk 00:20:22]} {[%emt 00:04:22]} 27. Ke2 {[%clk 01:11:44]} {[%emt
00:00:35]} Ke6 {[%clk 00:19:25]} {[%emt 00:01:26]} 28. Nd2 {[%clk 01:10:07]}
{[%emt 00:02:07]} b5 {[%clk 00:17:57]} {[%emt 00:01:59]} 29. a3 {[%clk
01:01:07]} {[%emt 00:09:29]} Bc5 {[%clk 00:15:55]} {[%emt 00:02:30]} 30. Nb3
{[%clk 01:00:04]} {[%emt 00:01:35]} Bb6 {[%clk 00:15:16]} {[%emt 00:01:09]} 31.
Na1 {[%clk 00:59:02]} {[%emt 00:01:31]} e4 {[%clk 00:10:20]} {[%emt 00:05:26]}
32. Nc2 {[%clk 00:58:45]} {[%emt 00:00:47]} f5 {[%clk 00:10:21]} {[%emt
00:00:30]} 33. f3 {[%clk 00:57:44]} {[%emt 00:01:31]} Re5 {[%clk 00:04:23]}
{[%emt 00:06:28]} 34. fxe4 {[%clk 00:46:05]} {[%emt 00:12:09]} Rxe4+ {[%clk
00:04:21]} {[%emt 00:00:33]} 35. Kd3 {[%clk 00:40:24]} {[%emt 00:06:10]} Rxe1
{[%clk 00:04:23]} {[%emt 00:00:28]} 36. Nxe1 {[%clk 00:40:53]} {[%emt
00:00:01]} Ke5 {[%clk 00:04:36]} {[%emt 00:00:16]} 37. g3 {[%clk 00:38:52]}
{[%emt 00:02:31]} Bf2 {[%clk 00:04:06]} {[%emt 00:01:00]} 38. Nf3+ {[%clk
00:36:36]} {[%emt 00:02:45]} Kd5 {[%clk 00:04:15]} {[%emt 00:00:21]} 39. g4
{[%clk 00:36:38]} {[%emt 00:00:28]} fxg4 {[%clk 00:03:56]} {[%emt 00:00:50]} 40.
hxg4 {[%clk 00:37:07]} {[%emt 00:00:01]} h6 {[%clk 00:03:16]} {[%emt 00:01:10]}
41. b3 {[%clk 00:34:05]} {[%emt 00:03:32]} Bc5 {[%clk 00:03:16]} {[%emt
00:00:30]} 42. a4 {[%clk 00:33:43]} {[%emt 00:00:53]} bxa4 {[%clk 00:02:41]}
{[%emt 00:01:05]} 43. c4+ {[%clk 00:33:28]} {[%emt 00:00:44]} Ke6 {[%clk
00:02:32]} {[%emt 00:00:38]} 1/2-1/2

[Event "15e Open International d'Echecs Mont de Marsan"]
[Site "Mont de Marsan, France"]
[Date "????.??.??"]
[Round "7.3"]
[White "BAREYRE, PATRICK"]
[Black "PRIE, ERIC"]
[Result "0-1"]
[TimeControl "60 minutes + 30 secondes per move"]
[BlackTitle "GM"]
[WhiteElo "2134"]
[BlackElo "2482"]

1. d4 {[%clk 01:30:57]} {[%emt 00:00:02]} Nf6 {[%clk 01:25:16]} {[%emt
00:05:45]} 2. Bg5 {[%clk 01:21:40]} {[%emt 00:09:48]} d5 {[%clk 01:25:35]}
{[%emt 00:00:10]} 3. Nd2 {[%clk 01:21:24]} {[%emt 00:00:46]} c5 {[%clk
01:25:58]} {[%emt 00:00:07]} 4. dxc5 {[%clk 01:09:55]} {[%emt 00:12:00]} e6
{[%clk 01:19:36]} {[%emt 00:06:51]} 5. e4 {[%clk 01:02:09]} {[%emt 00:08:16]}
Bxc5 {[%clk 01:19:43]} {[%emt 00:00:23]} 6. Bd3 {[%clk 01:00:21]} {[%emt
00:02:16]} Qb6 {[%clk 01:01:48]} {[%emt 00:18:27]} 7. Nh3 {[%clk 00:46:33]}
{[%emt 00:14:18]} dxe4 {[%clk 01:01:52]} {[%emt 00:00:25]} 8. Bxe4 {[%clk
00:31:27]} {[%emt 00:15:37]} Nxe4 {[%clk 00:44:37]} {[%emt 00:17:45]} 9. Nxe4
{[%clk 00:31:47]} {[%emt 00:00:11]} Qb4+ {[%clk 00:44:54]} {[%emt 00:00:12]} 10.
Kf1 {[%clk 00:26:26]} {[%emt 00:05:51]} O-O {[%clk 00:43:05]} {[%emt 00:02:19]}
11. Qe1 {[%clk 00:22:41]} {[%emt 00:04:15]} Qb5+ {[%clk 00:39:53]} {[%emt
00:03:41]} 12. Kg1 {[%clk 00:22:38]} {[%emt 00:00:33]} e5 {[%clk 00:29:02]}
{[%emt 00:11:21]} 13. a4 {[%clk 00:19:55]} {[%emt 00:03:13]} Qc6 {[%clk
00:27:48]} {[%emt 00:01:43]} 14. b4 {[%clk 00:16:48]} {[%emt 00:03:39]} Bb6
{[%clk 00:27:39]} {[%emt 00:00:39]} 15. Ra3 {[%clk 00:15:29]} {[%emt 00:01:49]}
Bf5 {[%clk 00:26:09]} {[%emt 00:02:00]} 16. Ng3 {[%clk 00:12:44]} {[%emt
00:03:15]} Bg6 {[%clk 00:26:16]} {[%emt 00:00:22]} 17. a5 {[%clk 00:12:23]}
{[%emt 00:00:52]} Bc7 {[%clk 00:20:39]} {[%emt 00:06:07]} 18. Be3 {[%clk
00:10:17]} {[%emt 00:02:36]} Bd6 {[%clk 00:18:43]} {[%emt 00:02:25]} 19. c3
{[%clk 00:08:17]} {[%emt 00:02:30]} Nd7 {[%clk 00:17:07]} {[%emt 00:02:06]} 20.
Ng5 {[%clk 00:08:31]} {[%emt 00:00:16]} f5 {[%clk 00:16:15]} {[%emt 00:01:21]}
21. Bc1 {[%clk 00:05:02]} {[%emt 00:04:01]} Rae8 {[%clk 00:15:52]} {[%emt
00:00:51]} 22. Qd1 {[%clk 00:05:03]} {[%emt 00:00:30]} a6 {[%clk 00:10:41]}
{[%emt 00:05:42]} 23. h4 {[%clk 00:05:14]} {[%emt 00:00:19]} f4 {[%clk
00:09:35]} {[%emt 00:01:36]} 24. Nf1 {[%clk 00:04:30]} {[%emt 00:01:14]} h6
{[%clk 00:05:43]} {[%emt 00:04:23]} 25. h5 {[%clk 00:04:13]} {[%emt 00:00:48]}
Bf5 {[%clk 00:06:00]} {[%emt 00:00:13]} 26. Qb3+ {[%clk 00:03:08]} {[%emt
00:01:35]} Kh8 {[%clk 00:06:23]} {[%emt 00:00:07]} 27. Nf7+ {[%clk 00:03:20]}
{[%emt 00:00:18]} Kh7 {[%clk 00:06:41]} {[%emt 00:00:11]} 28. Nxd6 {[%clk
00:03:20]} {[%emt 00:00:31]} Qxd6 {[%clk 00:07:06]} {[%emt 00:00:05]} 29. Ra1
{[%clk 00:03:26]} {[%emt 00:00:24]} Bd3 {[%clk 00:05:09]} {[%emt 00:02:26]} 30.
Ba3 {[%clk 00:03:09]} {[%emt 00:00:48]} Qc7 {[%clk 00:04:35]} {[%emt 00:01:03]}
31. Rh3 {[%clk 00:02:25]} {[%emt 00:01:14]} e4 {[%clk 00:04:11]} {[%emt
00:00:54]} 32. Rd1 {[%clk 00:02:04]} {[%emt 00:00:51]} Ne5 {[%clk 00:04:09]}
{[%emt 00:00:32]} 33. Nh2 {[%clk 00:01:26]} {[%emt 00:01:09]} Rf5 {[%clk
00:03:58]} {[%emt 00:00:40]} 34. Bc1 {[%clk 00:01:32]} {[%emt 00:00:25]} Be2
{[%clk 00:02:38]} {[%emt 00:01:49]} 35. Rd4 {[%clk 00:01:35]} {[%emt 00:00:27]}
Bd3 {[%clk 00:02:21]} {[%emt 00:00:47]} 36. Rh4 {[%clk 00:01:30]} {[%emt
00:00:35]} Nc6 {[%clk 00:02:34]} {[%emt 00:00:16]} 37. Rd5 {[%clk 00:01:25]}
{[%emt 00:00:36]} Qf7 {[%clk 00:02:12]} {[%emt 00:00:51]} 38. c4 {[%clk
00:00:57]} {[%emt 00:00:58]} Rxd5 {[%clk 00:02:38]} {[%emt 00:00:04]} 39. cxd5
{[%clk 00:01:15]} {[%emt 00:00:11]} Nd4 {[%clk 00:03:06]} {[%emt 00:00:03]} 40.
Qd1 {[%clk 00:00:55]} {[%emt 00:00:51]} Qf6 {[%clk 00:01:40]} {[%emt 00:01:56]}
41. Rh3 {[%clk 00:00:36]} {[%emt 00:00:49]} Ne2+ {[%clk 00:01:16]} {[%emt
00:00:53]} 42. Kh1 {[%clk 00:01:00]} {[%emt 00:00:07]} Qd4 {[%clk 00:01:13]}
{[%emt 00:00:33]} 43. Ng4 {[%clk 00:00:34]} {[%emt 00:00:57]} Qxd5 {[%clk
00:01:30]} {[%emt 00:00:13]} 44. Qa4 {[%clk 00:00:33]} {[%emt 00:00:31]} Bb5
{[%clk 00:01:27]} {[%emt 00:00:32]} 45. Qc2 {[%clk 00:00:52]} {[%emt 00:00:11]}
Qe6 {[%clk 00:01:27]} {[%emt 00:00:30]} 46. Rh4 {[%clk 00:00:34]} {[%emt
00:00:48]} Rc8 {[%clk 00:01:50]} {[%emt 00:00:07]} 0-1

[ePGN "0.1;DGT LiveChess/2.2.3"]